bitfinex-derivatives/quotes_BTCF0:USTF0_20251002
["timestamp","ask_amount","ask_price","bid_price","bid_amount"]
[1759392043450,0.18222789,118610.0,118600.0,0.118632]
[1759392043652,0.18222789,118610.0,118600.0,0.63668046]
[1759392049555,0.17422789,118610.0,118600.0,0.63668046]
[1759392049952,0.17622789,118610.0,118600.0,0.63668046]
[1759392050351,0.08184762,118610.0,118600.0,0.63668046]
[1759392051257,0.16611252,118610.0,118600.0,0.63668046]
[1759392052758,0.42513675,118610.0,118600.0,0.37765623]
[1759392052951,0.16611252,118610.0,118600.0,0.37765623]
[1759392053352,0.16611252,118610.0,118600.0,0.63668046]
[1759392054358,0.16611252,118610.0,118600.0,0.3776732]
[1759392057963,0.16611252,118610.0,118600.0,0.118632]
[1759392058160,0.16611252,118610.0,118600.0,0.3776732]
[1759392060462,0.15599774,118610.0,118600.0,0.3776732]
[1759392060658,0.15599774,118610.0,118600.0,0.118632]
[1759392060854,0.15599774,118610.0,118600.0,0.3776732]
[1759392066865,0.14230064,118610.0,118600.0,0.3776732]
[1759392069969,0.05803574,118610.0,118600.0,0.3776732]
[1759392070566,0.002,118610.0,118600.0,0.118632]
[1759392070769,0.3453083,118610.0,118600.0,0.03436]
[1759392070965,0.0862671,118610.0,118600.0,0.03436]
[1759392071272,0.0862671,118610.0,118600.0,0.2934012]
[1759392071568,0.0842671,118610.0,118600.0,0.03936]
[1759392071764,0.3433083,118610.0,118600.0,0.03936]
[1759392071967,0.0842671,118610.0,118600.0,0.03936]
[1759392074473,0.15291485,118610.0,118600.0,0.03936]
[1759392074873,0.15291485,118610.0,118600.0,0.2984012]
[1759392075078,0.06864775,118610.0,118600.0,0.03936]
[1759392075373,0.36633396,118620.0,118610.0,0.01338]
[1759392075569,0.36633396,118620.0,118610.0,0.03669]
[1759392076876,0.36633396,118620.0,118610.0,0.03869]
[1759392077475,0.36633396,118620.0,118610.0,0.03669]
[1759392077673,0.36633396,118620.0,118610.0,0.03869]
[1759392079078,0.36633396,118620.0,118610.0,0.1229569]
[1759392079875,0.43507703,118620.0,118610.0,0.1229569]
[1759392087179,0.17603583,118620.0,118610.0,0.1229569]
[1759392087482,0.43507703,118620.0,118610.0,0.1229569]
[1759392088482,1.11390769,118620.0,118610.0,0.002]
[1759392088681,1.13651624,118620.0,118610.0,0.002]
[1759392088880,0.87747504,118620.0,118610.0,0.002]
[1759392089187,0.87747504,118620.0,118610.0,0.03627]
[1759392089380,1.37839384,118620.0,118610.0,0.03627]
[1759392089884,1.63843504,118620.0,118610.0,0.03427]
[1759392090186,1.63843504,118620.0,118610.0,0.01325]
[1759392090581,1.63743504,118620.0,118610.0,0.01325]
[1759392090777,1.63843504,118620.0,118610.0,0.01325]
[1759392099388,1.23843504,118620.0,118610.0,0.01325]
[1759392099579,1.23843504,118620.0,118600.0,0.01278]
[1759392099580,0.0842669,118610.0,118600.0,0.01278]
[1759392099786,0.084274,118600.0,118590.0,0.03414]
[1759392099987,1.08961547,118600.0,118590.0,0.03414]
[1759392101689,1.08961547,118600.0,118590.0,0.03914]
[1759392102398,1.08961547,118600.0,118590.0,0.03414]
[1759392102588,1.08961547,118600.0,118590.0,0.03914]
[1759392107098,0.83057427,118600.0,118590.0,0.03914]
[1759392107302,1.08961547,118600.0,118590.0,0.03914]
[1759392108792,1.08961547,118600.0,118590.0,0.005]
[1759392109498,1.08961547,118600.0,118590.0,0.01814]
[1759392109803,1.08961547,118600.0,118590.0,0.04045]
[1759392110104,0.83057427,118600.0,118590.0,0.04045]
[1759392110807,1.08961547,118600.0,118590.0,0.04045]
[1759392111103,0.83057427,118600.0,118590.0,0.04045]
[1759392111304,1.08961547,118600.0,118590.0,0.04045]
[1759392113205,1.08969547,118600.0,118590.0,0.04045]
[1759392113407,0.32961547,118600.0,118590.0,0.04045]
[1759392113594,1.08969547,118600.0,118590.0,0.04045]
[1759392116410,1.34901883,118600.0,118590.0,0.04045]
[1759392120906,0.58893883,118600.0,118590.0,0.04045]
[1759392121117,1.34905883,118600.0,118590.0,0.04045]
[1759392122617,1.34905883,118600.0,118590.0,0.03545]
[1759392122817,1.34905883,118600.0,118590.0,0.01714]
[1759392123014,1.34905883,118600.0,118590.0,0.03945]
[1759392124014,1.37160145,118600.0,118590.0,0.03945]
[1759392124324,1.37260145,118600.0,118590.0,0.03545]
[1759392124613,1.37360145,118600.0,118590.0,0.03545]
[1759392125307,1.37360291,118600.0,118590.0,0.03545]
[1759392128723,0.85523835,118600.0,118590.0,0.03545]
[1759392129021,1.37360291,118600.0,118590.0,0.03545]
[1759392131918,1.37160291,118600.0,118590.0,0.03545]
[1759392132226,1.37160291,118600.0,118590.0,0.03945]
[1759392133526,1.37160291,118600.0,118590.0,0.03745]
[1759392134521,1.39091673,118600.0,118590.0,0.03745]
[1759392136232,1.39091673,118600.0,118590.0,0.01514]
[1759392136633,1.39091673,118600.0,118590.0,0.03745]
[1759392137022,1.39091673,118600.0,118590.0,0.002]
[1759392137930,1.39091673,118600.0,118590.0,0.01461]
[1759392138126,0.87255217,118600.0,118590.0,0.03714]
[1759392138527,1.39091673,118600.0,118590.0,0.03714]
[1759392140732,0.87255217,118600.0,118590.0,0.03714]
[1759392141034,1.39091673,118600.0,118590.0,0.03714]
[1759392141431,0.63079673,118600.0,118590.0,0.03714]
[1759392141630,0.85323835,118600.0,118590.0,0.03714]
[1759392141835,1.37160291,118600.0,118590.0,0.03714]
[1759392142530,0.61148291,118600.0,118590.0,0.03714]
[1759392142734,1.11242063,118600.0,118590.0,0.29632228]
[1759392143932,0.09311835,118600.0,118590.0,0.29632228]
[1759392144132,1.11242063,118600.0,118590.0,0.29632228]
[1759392145427,0.35230063,118600.0,118590.0,0.29632228]
[1759392145629,1.11242063,118600.0,118590.0,0.29632228]
[1759392147535,0.35230063,118600.0,118590.0,0.29632228]
[1759392147835,1.11242063,118600.0,118590.0,0.29632228]
[1759392148138,0.09311835,118600.0,118590.0,0.38060258]
[1759392148331,0.48375835,118600.0,118590.0,0.38060258]
[1759392148733,0.46121427,118600.0,118590.0,0.38060258]
[1759392149136,0.72039655,118600.0,118590.0,0.29632228]
[1759392150440,0.72039655,118600.0,118590.0,0.03714]
[1759392150646,0.07057427,118600.0,118590.0,0.38060248]
[1759392150937,1.08987655,118600.0,118590.0,0.38060248]
[1759392152837,1.34905883,118600.0,118590.0,0.03714]
[1759392153230,1.34905883,118600.0,118590.0,0.29632228]
[1759392153433,1.08987655,118600.0,118590.0,0.29632228]
[1759392156841,0.83069427,118600.0,118590.0,0.29632228]
[1759392157141,1.08987655,118600.0,118590.0,0.29632228]
[1759392162043,0.83069427,118600.0,118590.0,0.29632228]
[1759392162243,1.08987655,118600.0,118590.0,0.29632228]
[1759392162443,0.83069427,118600.0,118590.0,0.29632228]
[1759392162642,1.08987655,118600.0,118590.0,0.29632228]
[1759392164348,1.1124629,118600.0,118590.0,0.29632228]
[1759392165249,0.85328062,118600.0,118590.0,0.29632228]
[1759392165449,1.1124629,118600.0,118590.0,0.29632228]
[1759392165936,1.1124629,118600.0,118590.0,0.01461]
[1759392166136,1.1124629,118600.0,118590.0,0.03677]
[1759392171152,0.85328062,118600.0,118590.0,0.03677]
[1759392171451,1.1124629,118600.0,118590.0,0.03677]
[1759392172152,0.3523429,118600.0,118590.0,0.03677]
[1759392172347,1.1124229,118600.0,118590.0,0.03677]
[1759392173252,1.37160518,118600.0,118590.0,0.03677]
[1759392174651,1.34901883,118600.0,118590.0,0.03677]
[1759392175753,1.08983655,118600.0,118590.0,0.03677]
[1759392176449,1.112437,118600.0,118590.0,0.03677]
[1759392178355,1.11241258,118600.0,118590.0,0.03677]
[1759392178856,0.35233258,118600.0,118590.0,0.1210517]
[1759392179248,0.32973213,118600.0,118590.0,0.03677]
[1759392179447,1.08981213,118600.0,118590.0,0.03677]
[1759392180362,0.32973213,118600.0,118590.0,0.03677]
[1759392180548,1.08981213,118600.0,118590.0,0.03677]
[1759392181155,0.32973213,118600.0,118590.0,0.03677]
[1759392181360,0.83061427,118600.0,118590.0,0.03677]
[1759392181659,1.08977213,118600.0,118590.0,0.03677]
[1759392182359,1.11237049,118600.0,118590.0,0.03677]
[1759392184657,0.85321263,118600.0,118590.0,0.03677]
[1759392186257,1.11237049,118600.0,118590.0,0.03677]
[1759392200988,0.85321263,118600.0,118590.0,0.03677]
[1759392201189,1.11237049,118600.0,118590.0,0.03677]
[1759392204292,0.35233049,118600.0,118590.0,0.03677]
[1759392204592,1.11237049,118600.0,118590.0,0.03677]
[1759392204788,1.11237049,118600.0,118590.0,0.1210516]
[1759392205091,1.11237049,118600.0,118590.0,0.03677]
[1759392205292,1.11237049,118600.0,118590.0,0.01461]
[1759392205690,1.11237049,118600.0,118590.0,0.03772]
[1759392208001,0.85321263,118600.0,118590.0,0.03772]
[1759392208293,1.11237049,118600.0,118590.0,0.03772]
[1759392212896,1.11237049,118600.0,118590.0,0.1220016]
[1759392214098,0.35233049,118600.0,118590.0,0.1220016]
[1759392214300,1.11237049,118600.0,118590.0,0.1220016]
[1759392214598,1.13186493,118600.0,118590.0,0.002]
[1759392214994,0.87270707,118600.0,118590.0,0.002]
[1759392215194,1.53186493,118600.0,118590.0,0.002]
[1759392215702,1.5318369,118600.0,118590.0,0.002]
[1759392216100,1.5318369,118600.0,118580.0,0.03049742]
[1759392216101,0.0842814,118590.0,118580.0,0.03049742]
[1759392216301,0.34343926,118590.0,118580.0,0.03049742]
[1759392217698,0.34343926,118590.0,118580.0,0.03449742]
[1759392220303,0.34343926,118590.0,118580.0,0.02137742]
[1759392220707,0.36599518,118590.0,118580.0,0.02137742]
[1759392225710,0.36599518,118590.0,118580.0,0.004]
[1759392226108,0.62515304,118590.0,118580.0,0.004]
[1759392226305,1.02515304,118590.0,118580.0,0.004]
[1759392228715,1.78523304,118590.0,118580.0,0.004]
[1759392229318,1.02515304,118590.0,118580.0,0.004]
[1759392229514,1.78523304,118590.0,118580.0,0.004]
[1759392230520,0.50683732,118590.0,118580.0,0.004]
[1759392230721,1.78523304,118590.0,118580.0,0.004]
[1759392233217,0.50683732,118590.0,118580.0,0.004]
[1759392233423,1.78523304,118590.0,118580.0,0.004]
[1759392236325,1.02515304,118590.0,118580.0,0.004]
[1759392236513,1.78527304,118590.0,118580.0,0.004]
[1759392240231,1.78553038,118590.0,118580.0,0.004]
[1759392241231,0.0842953,118570.0,118560.0,0.01325]
[1759392241435,1.08999833,118570.0,118560.0,0.01325]
[1759392241626,0.8307118,118570.0,118560.0,0.01325]
[1759392241832,0.0843024,118560.0,118550.0,0.03621832]
[1759392242033,0.60287546,118560.0,118550.0,9.832e-05]
[1759392243130,0.60287546,118560.0,118550.0,0.01009832]
[1759392243434,0.60287546,118560.0,118550.0,0.02109832]
[1759392245329,1.36307546,118560.0,118550.0,0.02109832]
[1759392248235,0.60287546,118560.0,118550.0,0.02109832]
[1759392248733,1.36307546,118560.0,118550.0,0.02109832]
[1759392249332,1.36307546,118560.0,118550.0,0.03461832]
[1759392250034,0.60287546,118560.0,118550.0,0.03461832]
[1759392250332,1.36307546,118560.0,118550.0,0.03461832]
[1759392250834,0.60287546,118560.0,118550.0,0.03461832]
[1759392251134,1.36307546,118560.0,118550.0,0.03461832]
[1759392252231,1.36307546,118560.0,118550.0,0.02109832]
[1759392253432,0.62558324,118560.0,118550.0,0.02109832]
[1759392253635,1.38578324,118560.0,118550.0,0.02109832]
[1759392257235,1.38578262,118560.0,118550.0,0.02109832]
[1759392260238,0.62558262,118560.0,118550.0,0.02109832]
[1759392261039,1.38582262,118560.0,118550.0,0.02109832]
[1759392262640,1.38586262,118560.0,118550.0,0.02109832]
[1759392263939,1.40566956,118560.0,118550.0,0.02109832]
[1759392264535,1.40566956,118560.0,118540.0,0.01284]
[1759392264536,0.0843092,118550.0,118540.0,0.01284]
[1759392264734,0.0843163,118540.0,118530.0,0.01352]
[1759392264932,0.0843234,118530.0,118520.0,0.03563]
[1759392265132,0.34360993,118530.0,118520.0,0.03563]
[1759392265536,0.34368603,118530.0,118520.0,0.03563]
[1759392266540,0.34368603,118530.0,118520.0,0.04263]
[1759392266735,1.10400603,118530.0,118520.0,0.04263]
[1759392268137,1.10400603,118530.0,118520.0,0.03563]
[1759392268328,1.10800603,118530.0,118520.0,0.03563]
[1759392268943,1.11300603,118530.0,118520.0,0.03563]
[1759392269142,1.11304603,118530.0,118520.0,0.03563]
[1759392269445,1.12753489,118530.0,118520.0,0.03563]
[1759392270243,0.0843301,118520.0,118510.0,0.03563]
[1759392270544,0.32990754,118520.0,118510.0,0.03563]
[1759392271138,0.58919407,118520.0,118510.0,0.03563]
[1759392271548,0.58919407,118520.0,118510.0,0.03963]
[1759392271741,0.58919407,118520.0,118510.0,0.004]
[1759392272145,0.0843371,118510.0,118500.0,0.03558]
[1759392272444,1.10402363,118510.0,118500.0,0.03558]
[1759392273544,1.10402363,118510.0,118500.0,0.03958]
[1759392274146,0.34362363,118510.0,118500.0,0.03958]
[1759392274346,1.10410363,118510.0,118500.0,0.03958]
[1759392274542,1.10410363,118510.0,118500.0,0.01747]
[1759392275243,1.36339016,118510.0,118500.0,0.01747]
[1759392275442,1.36339016,118510.0,118500.0,0.004]
[1759392275641,1.10418363,118510.0,118500.0,0.004]
[1759392277636,1.10422363,118510.0,118500.0,0.01747]
[1759392280048,0.0843371,118510.0,118500.0,0.03958]
[1759392280250,1.10422363,118510.0,118500.0,0.03958]
[1759392280548,1.10422363,118510.0,118500.0,0.01747]
[1759392281352,0.34362363,118510.0,118500.0,0.01747]
[1759392281654,1.10422363,118510.0,118500.0,0.01747]
[1759392283148,1.36351016,118510.0,118500.0,0.01747]
[1759392283356,1.36351016,118510.0,118500.0,0.004]
[1759392283648,1.3830012,118510.0,118500.0,0.004]
[1759392284254,3.0943212,118510.0,118500.0,0.004]
[1759392284751,0.6224012,118510.0,118500.0,0.004]
[1759392284951,2.57574814,118510.0,118500.0,0.004]
[1759392285149,3.0943212,118510.0,118500.0,0.004]
[1759392285656,3.0943612,118510.0,118500.0,0.004]
[1759392288259,3.11697662,118510.0,118500.0,0.004]
[1759392288858,3.11705662,118510.0,118500.0,0.004]
[1759392290459,3.11705662,118510.0,118490.0,0.01347]
[1759392290460,0.0843435,118500.0,118490.0,0.01347]
[1759392290663,0.0843506,118490.0,118480.0,0.03549]
[1759392290858,0.0996077,118480.0,118470.0,0.03557854]
[1759392291159,0.61818076,118480.0,118470.0,0.03557854]
[1759392292052,0.62518076,118480.0,118470.0,0.03557854]
[1759392292254,0.1066077,118480.0,118470.0,0.03557854]
[1759392292454,0.61818076,118480.0,118470.0,0.03557854]
[1759392293156,0.0996077,118480.0,118470.0,0.03557854]
[1759392293350,0.62518076,118480.0,118470.0,0.03557854]
[1759392296772,0.8674077,118480.0,118470.0,0.03557854]
[1759392296970,1.38598076,118480.0,118470.0,0.03557854]
[1759392297972,0.62518076,118480.0,118470.0,0.03557854]
[1759392298170,1.38598076,118480.0,118470.0,0.03557854]
[1759392298469,0.62518076,118480.0,118470.0,0.03557854]
[1759392298673,0.8674077,118480.0,118470.0,0.11994334]
[1759392298974,1.12665423,118480.0,118470.0,0.37922987]
[1759392299677,1.12665423,118480.0,118470.0,0.29486507]
[1759392300274,1.1270266,118480.0,118470.0,0.03557854]
[1759392303477,1.1270266,118480.0,118470.0,8.854e-05]
[1759392303683,0.0996219,118460.0,118450.0,0.03512]
[1759392303976,1.10652496,118460.0,118450.0,0.03512]
[1759392304776,1.10660576,118460.0,118450.0,0.03512]
[1759392304969,1.10760576,118460.0,118450.0,0.03512]
[1759392305173,1.10760576,118460.0,118450.0,0.1194989]
[1759392305174,1.1213215,118460.0,118450.0,0.1194989]
[1759392305383,1.05064359,118460.0,118450.0,0.1194989]
[1759392305683,1.13601539,118460.0,118450.0,0.1194989]
[1759392306682,1.13601539,118460.0,118450.0,0.03512]
[1759392307972,0.87635649,118460.0,118450.0,0.03512]
[1759392308179,1.13601539,118460.0,118450.0,0.03512]
[1759392308477,0.37505539,118460.0,118450.0,0.03512]
[1759392308677,0.03102469,118460.0,118450.0,0.3791575]
[1759392308869,0.28286619,118460.0,118450.0,0.7791575]
[1759392309069,0.29811619,118460.0,118450.0,0.7791575]
[1759392309285,0.29811619,118460.0,118450.0,0.7787984]
[1759392309478,0.29811619,118460.0,118450.0,0.4347609]
[1759392309777,0.55777509,118460.0,118450.0,0.0347609]
[1759392313983,0.1002084,118450.0,118440.0,0.05196011]
[1759392314186,0.34614998,118450.0,118440.0,0.05196011]
[1759392314776,0.1002156,118440.0,118430.0,0.03512]
[1759392314974,1.1213545,118440.0,118430.0,0.03512]
[1759392315183,0.1002227,118430.0,118420.0,0.05195594]
[1759392315372,0.3598816,118430.0,118420.0,0.05195594]
[1759392315982,1.1214016,118430.0,118420.0,0.13635584]
[1759392316889,0.8617427,118430.0,118420.0,0.13635584]
[1759392317275,0.8617427,118430.0,118420.0,0.13935584]
[1759392317476,1.1214016,118430.0,118420.0,0.13935584]
[1759392318086,1.1214016,118430.0,118420.0,0.13635584]
[1759392318290,1.1214016,118430.0,118420.0,0.14035584]
[1759392319288,1.1214416,118430.0,118420.0,0.14035584]
[1759392321189,0.3598816,118430.0,118420.0,0.14035584]
[1759392321589,0.6125427,118430.0,118420.0,0.14035584]
[1759392322391,0.77735,118430.0,118420.0,0.14035584]
[1759392322996,0.01583,118430.0,118420.0,0.14035584]
[1759392323180,0.77735,118430.0,118420.0,0.14035584]
[1759392323987,0.8617425,118430.0,118420.0,0.14035584]
[1759392324188,0.84802362,118430.0,118420.0,0.14035584]
[1759392325396,0.08650362,118430.0,118420.0,0.14035584]
[1759392325593,0.84802362,118430.0,118420.0,0.14035584]
[1759392328799,1.10768252,118430.0,118420.0,0.14035584]
[1759392334408,0.0843823,118450.0,118440.0,0.03371]
[1759392334593,0.09901903,118460.0,118450.0,0.1180882]
[1759392334807,0.01464443,118460.0,118450.0,0.3777471]
[1759392335106,0.32980443,118460.0,118450.0,0.3777471]
[1759392335306,0.32980443,118460.0,118450.0,0.1180882]
[1759392335801,0.42017553,118460.0,118450.0,0.1180882]
[1759392336507,0.33580443,118460.0,118450.0,0.1180882]
[1759392336700,0.32980443,118460.0,118450.0,0.1180882]
[1759392336900,0.02064443,118460.0,118450.0,0.1180882]
[1759392337102,0.19276443,118460.0,118450.0,0.3777471]
[1759392337298,0.19276443,118460.0,118450.0,0.7777471]
[1759392337498,0.0060808,118460.0,118450.0,0.7777471]
[1759392339308,0.0030808,118460.0,118450.0,0.7777471]
[1759392339509,0.0060808,118460.0,118450.0,0.3777471]
[1759392339905,0.0030808,118460.0,118450.0,0.3777471]
[1759392340109,0.0120808,118460.0,118450.0,0.3777471]
[1759392340404,1e-07,118460.0,118450.0,0.3777471]
[1759392340595,0.00444,118490.0,118480.0,0.0843573]
[1759392340801,0.27066325,118500.0,118490.0,0.1180601]
[1759392340997,0.024093,118500.0,118490.0,0.377719]
[1759392341202,0.01308865,118500.0,118490.0,0.777719]
[1759392341402,9.26e-05,118500.0,118490.0,0.777719]
[1759392341910,9.26e-05,118500.0,118490.0,0.377719]
[1759392342919,0.0060926,118500.0,118490.0,0.377719]
[1759392351723,0.0060926,118500.0,118490.0,0.1180601]
[1759392352228,0.3500948,118500.0,118490.0,0.1180605]
[1759392352525,0.4904359,118500.0,118490.0,0.1180605]
[1759392353117,0.4904359,118500.0,118490.0,0.1180606]
[1759392360325,0.75000324,118500.0,118490.0,0.1180606]
[1759392360823,0.66565994,118500.0,118490.0,0.37762794]
[1759392362028,0.75000334,118500.0,118490.0,0.37762794]
[1759392362728,0.4060926,118500.0,118490.0,0.37762794]
[1759392362931,0.0060926,118500.0,118490.0,0.37762794]
[1759392363322,0.0060926,118500.0,118490.0,0.63719528]
[1759392363925,0.0060926,118500.0,118490.0,0.37762794]
[1759392364222,0.0060926,118500.0,118490.0,0.63719528]
[1759392365022,0.0060926,118500.0,118490.0,0.37762794]
[1759392366032,0.0060926,118500.0,118490.0,0.77762794]
[1759392366229,0.0060926,118500.0,118490.0,1.03719528]
[1759392366429,0.0060926,118500.0,118490.0,0.77762794]
[1759392371529,1.09835644,118520.0,118510.0,0.0843364]
[1759392371726,1.12093641,118520.0,118510.0,0.1203164]
[1759392371932,1.13423057,118520.0,118510.0,0.1203164]
[1759392373035,1.14023057,118520.0,118510.0,0.1203164]
[1759392373234,1.14623057,118520.0,118510.0,0.1203164]
[1759392374134,1.06189687,118520.0,118510.0,0.1203164]
[1759392377236,1.14622617,118520.0,118510.0,0.1203164]
[1759392378042,1.40579351,118520.0,118510.0,0.1203164]
[1759392378736,1.32146421,118520.0,118510.0,0.1203164]
[1759392382538,1.38313811,118520.0,118510.0,0.1203164]
[1759392382740,1.40579351,118520.0,118510.0,0.1203164]
[1759392383249,1.38313811,118520.0,118510.0,0.1203164]
[1759392383534,1.38313811,118520.0,118500.0,0.35689064]
[1759392383535,1.80579351,118520.0,118500.0,0.0973198]
[1759392383741,0.25956734,118510.0,118500.0,0.0973198]
[1759392383941,0.36648371,118510.0,118500.0,0.0973198]
[1759392384130,0.36648371,118510.0,118500.0,0.1189098]
[1759392385146,0.36648371,118510.0,118500.0,0.03457]
[1759392385546,0.37248371,118510.0,118500.0,0.03457]
[1759392385742,0.37248371,118510.0,118500.0,0.01298]
[1759392386342,0.0843435,118500.0,118490.0,0.03427]
[1759392386538,1.3738667,118500.0,118490.0,0.03427]
[1759392387142,1.11429936,118500.0,118490.0,0.03427]
[1759392387851,1.3768667,118500.0,118490.0,0.03427]
[1759392388335,0.0843506,118490.0,118480.0,0.03427]
[1759392388539,0.33379193,118490.0,118480.0,0.0512338]
[1759392389048,0.07422459,118490.0,118480.0,0.0512338]
[1759392389246,0.33379193,118490.0,118480.0,0.0512338]
[1759392391648,1.09539193,118490.0,118480.0,0.31080114]
[1759392391943,0.0843469,118500.0,118490.0,0.03533]
[1759392392148,0.0843469,118500.0,118490.0,0.37924794]
[1759392392342,0.6691069,118500.0,118490.0,0.37924794]
[1759392392846,0.8461069,118500.0,118490.0,0.37924794]
[1759392393148,0.8491069,118500.0,118490.0,0.37924794]
[1759392394249,1.10867424,118500.0,118490.0,0.37924794]
[1759392394936,1.02432734,118500.0,118490.0,0.37924794]
[1759392395739,0.003,118500.0,118490.0,0.37924794]
[1759392395944,0.39216,118500.0,118490.0,0.37924794]
[1759392397150,0.76472,118500.0,118490.0,0.37924794]
[1759392397453,0.003,118500.0,118490.0,0.37924794]
[1759392397653,0.70468594,118500.0,118490.0,0.37924794]
[1759392397842,0.63868,118500.0,118490.0,0.37924794]
[1759392399550,0.89824734,118500.0,118490.0,0.1196806]
[1759392399750,0.89824734,118500.0,118490.0,0.37924794]
[1759392401551,0.63868,118500.0,118490.0,0.37924794]
[1759392401750,0.96520465,118500.0,118490.0,0.37924794]
[1759392401950,1.30911549,118500.0,118490.0,0.0980906]
[1759392402853,1.30911549,118500.0,118490.0,0.1196806]
[1759392404247,1.30911549,118500.0,118490.0,0.01374]
[1759392404557,0.07063917,118490.0,118480.0,0.1355849]
[1759392404853,0.33020651,118490.0,118480.0,0.1355849]
[1759392405647,0.33020651,118490.0,118480.0,0.39515224]
[1759392408256,0.33020651,118490.0,118480.0,0.1355849]
[1759392408654,0.96220465,118500.0,118480.0,0.1355849]
[1759392408848,0.06695731,118500.0,118490.0,0.37949794]
[1759392409051,0.34390674,118510.0,118500.0,0.1199234]
[1759392409254,0.58906674,118510.0,118500.0,0.1199234]
[1759392409554,0.65696955,118510.0,118500.0,0.1199234]
[1759392410560,0.65696955,118510.0,118500.0,0.03558]
[1759392411160,0.66296955,118510.0,118500.0,0.03558]
[1759392411555,0.68551411,118510.0,118500.0,0.03558]
[1759392414357,0.44035411,118510.0,118500.0,0.03558]
[1759392414554,1.20223411,118510.0,118500.0,0.03558]
[1759392416562,0.94266677,118510.0,118500.0,0.03558]
[1759392416858,1.20223411,118510.0,118500.0,0.03558]
[1759392417163,1.20223411,118510.0,118500.0,0.1199229]
[1759392417459,0.09644737,118510.0,118500.0,0.39648022]
[1759392417657,0.36150281,118510.0,118500.0,0.65604756]
[1759392419268,0.44583861,118510.0,118500.0,0.65604756]
[1759392420155,0.15823861,118510.0,118500.0,0.65604756]
[1759392420969,0.15823861,118510.0,118500.0,0.39648022]
[1759392421260,0.07390281,118510.0,118500.0,0.39648022]
[1759392421466,0.01329416,118520.0,118510.0,0.1199158]
[1759392421663,0.0843291,118520.0,118510.0,0.37948314]
[1759392421967,0.0843291,118520.0,118510.0,0.1199158]
[1759392422163,0.0843291,118520.0,118510.0,0.37948314]
[1759392422462,0.0843291,118520.0,118510.0,0.37937551]
[1759392422768,0.0903291,118520.0,118510.0,0.37937551]
[1759392422967,0.006,118520.0,118510.0,0.37937551]
[1759392423765,0.62595088,118530.0,118520.0,0.0843285]
[1759392423962,0.28216567,118530.0,118520.0,0.1199085]
[1759392424164,0.03195032,118530.0,118520.0,0.37936821]
[1759392424361,0.44967032,118530.0,118520.0,0.37936821]
[1759392424966,0.45267032,118530.0,118520.0,0.37936821]
[1759392425561,0.44967032,118530.0,118520.0,0.37936821]
[1759392425768,0.44967032,118530.0,118520.0,0.38236821]
[1759392426671,0.44967032,118530.0,118520.0,0.37936821]
[1759392426868,0.44967032,118530.0,118520.0,0.1199085]
[1759392427472,0.49864836,118530.0,118520.0,0.37936821]
[1759392427666,0.49864836,118530.0,118520.0,0.3965901]
[1759392428672,0.08092836,118530.0,118520.0,0.3965901]
[1759392428867,0.58659521,118540.0,118530.0,0.0975121]
[1759392429273,0.0843221,118530.0,118520.0,0.13712719]
[1759392429473,0.34378181,118530.0,118520.0,0.13712719]
[1759392430463,0.35614141,118530.0,118520.0,0.13712719]
[1759392431663,0.0123596,118530.0,118520.0,0.13712719]
[1759392431846,0.25945971,118530.0,118520.0,0.13712719]
[1759392432075,0.39392484,118540.0,118530.0,0.03558]
[1759392432275,0.65338455,118540.0,118530.0,0.03558]
[1759392432470,1.18354455,118540.0,118530.0,0.03558]
[1759392432874,0.42182455,118540.0,118530.0,0.1199023]
[1759392433075,1.18354455,118540.0,118530.0,0.1199023]
[1759392433380,1.18654455,118540.0,118530.0,0.1199023]
[1759392433977,1.18354455,118540.0,118530.0,0.1199023]
[1759392434183,1.18654455,118540.0,118530.0,0.1199023]
[1759392434879,1.19859768,118540.0,118530.0,0.1199023]
[1759392439288,0.43687768,118540.0,118530.0,0.1199023]
[1759392439492,1.19847768,118540.0,118530.0,0.1199023]
[1759392439881,1.19847768,118540.0,118530.0,0.03558]
[1759392441591,0.93901797,118540.0,118530.0,0.03558]
[1759392441792,1.19847768,118540.0,118530.0,0.03558]
[1759392442183,1.19847768,118540.0,118530.0,0.1199023]
[1759392444791,0.43687768,118540.0,118530.0,0.1199023]
[1759392444986,0.35255878,118540.0,118530.0,0.1199023]
[1759392445187,0.17741437,118540.0,118530.0,0.1199023]
[1759392445387,0.08183947,118540.0,118530.0,0.37936201]
[1759392445583,0.71731947,118540.0,118530.0,0.37936201]
[1759392446389,0.08183947,118540.0,118530.0,0.37936201]
[1759392446584,0.50207947,118540.0,118530.0,0.37936201]
[1759392446794,0.43529313,118540.0,118530.0,0.37936201]
[1759392447599,0.003,118540.0,118530.0,1.13336647]
[1759392448088,0.003,118540.0,118530.0,0.61444705]
[1759392448288,0.003,118540.0,118530.0,0.87390676]
[1759392449497,0.003,118540.0,118530.0,0.21444705]
[1759392449696,0.003,118540.0,118530.0,0.1199023]
[1759392449993,0.01546302,118540.0,118530.0,0.1199023]
[1759392450686,0.09977782,118540.0,118530.0,0.03558]
[1759392451992,0.09977782,118540.0,118530.0,0.1199019]
[1759392455101,0.01546302,118540.0,118530.0,0.1199019]
[1759392457702,0.09978012,118540.0,118530.0,0.1199019]
[1759392458196,0.35923983,118540.0,118530.0,0.03558]
[1759392458599,1.12123983,118540.0,118530.0,0.03558]
[1759392459101,1.12123983,118540.0,118530.0,0.1199042]
[1759392459802,1.12123983,118540.0,118530.0,0.03558]
[1759392461097,1.12123983,118540.0,118520.0,0.03041189]
[1759392461098,1.52123983,118540.0,118520.0,0.03041189]
[1759392461304,0.34378391,118530.0,118520.0,0.05198189]
[1759392464601,0.34378391,118530.0,118520.0,0.01319]
[1759392464797,0.34378391,118530.0,118510.0,0.03476]
[1759392464798,0.0843313,118520.0,118510.0,0.03476]
[1759392464993,1.10587101,118520.0,118510.0,0.01319]
[1759392466806,1.10587101,118520.0,118510.0,0.03476]
[1759392467011,1.10587101,118520.0,118510.0,0.01319]
[1759392468301,1.50587101,118520.0,118510.0,0.01319]
[1759392468505,0.0843384,118510.0,118500.0,0.03476]
[1759392468708,0.34379811,118510.0,118500.0,0.03476]
[1759392470300,0.41043946,118510.0,118500.0,0.03476]
[1759392470509,0.41043946,118510.0,118500.0,0.01319]
[1759392470695,0.0843457,118500.0,118490.0,0.03667787]
[1759392470896,0.8465457,118500.0,118490.0,0.03667787]
[1759392471711,0.0843457,118500.0,118490.0,0.03667787]
[1759392471910,0.8465457,118500.0,118490.0,0.03967787]
[1759392472210,0.8465457,118500.0,118490.0,0.12403067]
[1759392472508,0.8465457,118500.0,118490.0,0.12103067]
[1759392472810,0.8465457,118500.0,118490.0,0.12403067]
[1759392475208,0.8465457,118500.0,118490.0,0.38349038]